bitfinex/quotes_BTCUSD_20241025
["timestamp","ask_amount","ask_price","bid_price","bid_amount"]
[1729883367964,0.23055419,67003.0,66997.0,0.298517]
[1729883368174,0.23055419,67003.0,66983.0,0.226444]
[1729883368175,0.25,66993.0,66992.0,0.149271]
[1729883368397,0.40050381,66993.0,66992.0,0.149271]
[1729883368617,0.40050381,66993.0,66990.0,0.149274]
[1729883368871,0.15050381,66992.0,66989.0,0.149277]
[1729883369093,0.04005038,66991.0,66985.0,0.149287]
[1729883369314,0.25,66993.0,66990.0,0.149276]
[1729883369540,0.79772282,67003.0,66983.0,0.000844]
[1729883369541,0.25,66984.0,66983.0,0.000844]
[1729883369765,0.2752,66984.0,66977.0,0.000844]
[1729883369987,0.25,66977.0,66976.0,0.000844]
[1729883371156,0.40050381,66977.0,66976.0,0.150151]
[1729883372106,0.25,66977.0,66976.0,0.150151]
[1729883372336,0.4,66986.0,66985.0,0.149287]
[1729883372825,0.25,66988.0,66985.0,0.149287]
[1729883373274,0.25,66980.0,66979.0,0.447896]
[1729883374147,0.4,66986.0,66985.0,0.149287]
[1729883374858,0.25,66988.0,66987.0,0.149282]
[1729883375079,0.25,66990.0,66989.0,0.149278]
[1729883375302,0.47432758,66990.0,66989.0,0.149278]
[1729883375526,0.25,66990.0,66989.0,0.149278]
[1729883376483,0.4,66993.0,66992.0,0.149271]
[1729883376965,0.4,66996.0,66995.0,0.149264]
[1729883377210,0.55050381,66996.0,66995.0,0.149264]
[1729883378183,0.25,66993.0,66992.0,0.29854]
[1729883378408,0.25,66993.0,66984.0,0.005]
[1729883378631,0.001646,66993.0,66992.0,0.149271]
[1729883379335,0.251646,66993.0,66986.0,0.298569]
[1729883379559,0.15050381,66992.0,66982.0,0.005]
[1729883379816,0.15050381,66992.0,66991.0,0.149273]
[1729883381225,0.25,66988.0,66978.0,0.298601]
[1729883381446,0.25,66988.0,66983.0,0.149291]
[1729883381447,0.23373355,66984.0,66983.0,0.149291]
[1729883381673,0.23373355,66984.0,66977.0,0.000823]
[1729883381674,0.25,66980.0,66977.0,0.000823]
[1729883381886,0.23373355,66978.0,66977.0,0.000823]
[1729883382103,0.4476611,66978.0,66977.0,0.000823]
[1729883382326,0.38423736,66978.0,66977.0,0.000823]
[1729883383886,0.15050381,66978.0,66977.0,0.150127]
[1729883384311,0.15050381,66978.0,66977.0,0.000823]
[1729883385011,0.38423736,66978.0,66977.0,0.000823]
[1729883385237,0.65939585,66978.0,66977.0,0.000823]
[1729883385751,0.87028973,66978.0,66977.0,0.000823]
[1729883385985,1.27028973,66978.0,66977.0,0.000823]
[1729883386428,1.3145509,66978.0,66977.0,0.000823]
[1729883386886,1.1496509,66978.0,66977.0,0.000823]
[1729883388815,1.0003489,66978.0,66977.0,0.000823]
[1729883389039,0.59649769,66978.0,66977.0,0.000823]
[1729883389295,0.83023124,66978.0,66977.0,0.000823]
[1729883391596,0.89662299,66978.0,66977.0,0.000823]
[1729883391890,1.04592499,66978.0,66977.0,0.000823]
[1729883392101,0.97953324,66978.0,66977.0,0.000823]
[1729883392362,0.97953324,66978.0,66967.0,0.000844]
[1729883392363,0.39932,66970.0,66967.0,0.000844]
[1729883392601,0.39932,66970.0,66945.0,0.298752]
[1729883392602,0.23373355,66956.0,66945.0,0.298752]
[1729883392824,0.23373355,66956.0,66946.0,0.303748]
[1729883392825,0.15050381,66955.0,66946.0,0.303748]
[1729883393051,0.15050381,66955.0,66953.0,0.149357]
[1729883393295,0.15050381,66955.0,66953.0,0.149358]
[1729883393534,0.15050381,66955.0,66954.0,0.149356]
[1729883393767,0.15050381,66955.0,66951.0,0.298724]
[1729883393999,0.15050381,66955.0,66954.0,0.149356]
[1729883394738,0.4,66956.0,66955.0,0.149354]
[1729883394955,0.4,66962.0,66961.0,0.14934]
[1729883395922,0.4,66963.0,66962.0,0.149338]
[1729883396144,0.63373355,66963.0,66962.0,0.149338]
[1729883396869,0.23373355,66963.0,66962.0,0.149338]
[1729883397523,0.23373355,66963.0,66960.0,0.298685]
[1729883397524,0.23373355,66963.0,66960.0,0.149341]
[1729883397769,0.63373355,66963.0,66960.0,0.149341]
[1729883397983,0.63373355,66963.0,66959.0,0.29869]
[1729883398225,0.63373355,66963.0,66962.0,0.149338]
[1729883398882,0.23373355,66963.0,66962.0,0.149338]
[1729883399131,0.25,66965.0,66964.0,0.149333]
[1729883399347,0.25,66965.0,66963.0,0.149335]
[1729883399595,0.25,66965.0,66962.0,0.149338]
[1729883400253,0.25,66958.0,66955.0,0.298707]
[1729883400513,0.23373355,66955.0,66954.0,0.149356]
[1729883400745,0.25,66951.0,66941.0,0.1598]
[1729883400963,0.23373355,66942.0,66939.0,0.298775]
[1729883401200,0.23373355,66942.0,66941.0,0.149385]
[1729883401940,0.23373355,66942.0,66939.0,0.298779]
[1729883402135,0.23373355,66942.0,66933.0,0.298806]
[1729883402373,0.23373355,66942.0,66940.0,0.149386]
[1729883402593,0.23373355,66942.0,66937.0,0.298786]
[1729883402594,0.23373355,66942.0,66941.0,0.149385]
[1729883402837,0.65,66944.0,66943.0,0.14938]
[1729883403093,0.4,66944.0,66943.0,0.14938]
[1729883403760,0.4,66953.0,66952.0,0.14936]
[1729883404705,0.65,66953.0,66952.0,0.14936]
[1729883404941,0.23373355,66956.0,66955.0,0.149354]
[1729883405638,0.4,66958.0,66957.0,0.149349]
[1729883405875,0.25,66960.0,66959.0,0.149345]
[1729883406565,0.40050381,66960.0,66959.0,0.149345]
[1729883406810,0.23373355,66964.0,66959.0,0.149345]
[1729883407048,0.4022399,66967.0,66966.0,0.149329]
[1729883407731,0.0022399,66967.0,66966.0,0.149329]
[1729883408203,0.25,66969.0,66964.0,0.01]
[1729883408431,0.25,66969.0,66968.0,0.149325]
[1729883409586,0.40050381,66969.0,66961.0,0.005]
[1729883409941,0.48373355,66969.0,66968.0,0.149325]
[1729883410052,0.4,66977.0,66973.0,0.149313]
[1729883410053,0.23373355,66974.0,66973.0,0.149313]
[1729883410285,0.4,66977.0,66976.0,0.005]
[1729883410510,0.4,66977.0,66976.0,0.159307]
[1729883410755,0.001646,66978.0,66977.0,0.154304]
[1729883410982,0.001646,66978.0,66977.0,0.159304]
[1729883411228,0.001646,66978.0,66977.0,0.164304]
[1729883412114,0.001646,66978.0,66977.0,0.17085335]
[1729883412588,0.001646,66978.0,66977.0,0.159304]
[1729883412807,0.001646,66978.0,66977.0,0.149304]
[1729883414851,0.02502311,66978.0,66977.0,0.149304]
[1729883415592,0.02502311,66978.0,66977.0,0.164304]
[1729883415813,0.001646,66978.0,66977.0,0.240504]
[1729883417003,0.001646,66978.0,66977.0,0.39600781]
[1729883417721,0.001646,66978.0,66977.0,0.39100781]
[1729883418176,0.001646,66978.0,66977.0,0.39600781]
[1729883418466,0.22432758,66992.0,66985.0,0.015]
[1729883418685,0.22432758,66992.0,66985.0,0.6327097]
[1729883418917,0.22432758,66992.0,66985.0,0.62972436]
[1729883419138,0.22432758,66997.0,66985.0,0.62972436]
[1729883419583,0.22432758,66997.0,66985.0,0.240487]
[1729883420244,0.22432758,66997.0,66985.0,0.24713923]
[1729883420465,0.22432758,66997.0,66985.0,0.48087278]
[1729883420687,0.22432758,66997.0,66985.0,0.63637659]
[1729883420908,0.22432758,66997.0,66985.0,0.80497659]
[1729883421130,0.22432758,66997.0,66985.0,0.79997659]
[1729883421361,0.22432758,66997.0,66985.0,0.80497659]
[1729883421810,0.22432758,66997.0,66985.0,0.79997659]
[1729883422032,0.22432758,66997.0,66985.0,0.80497659]
[1729883422277,0.22432758,66997.0,66985.0,0.79997659]
[1729883422501,0.22432758,66997.0,66985.0,0.56624304]
[1729883422779,0.22432758,66997.0,66985.0,0.41573923]
[1729883423672,0.22432758,66997.0,66985.0,0.159287]
[1729883423673,0.251646,66993.0,66985.0,0.159287]
[1729883423926,0.251646,66993.0,66985.0,0.164287]
[1729883424375,0.251646,66993.0,66985.0,0.149287]
[1729883424597,0.23373355,66991.0,66985.0,0.149287]
[1729883424825,0.22432758,66990.0,66985.0,0.149287]
[1729883425048,0.40214981,66986.0,66985.0,0.149287]
[1729883425579,0.4881709,66986.0,66985.0,0.149287]
[1729883425794,1.12190445,66986.0,66975.0,0.005]
[1729883426037,0.15050381,66985.0,66975.0,0.298618]
[1729883426271,0.25,66979.0,66975.0,0.298618]
[1729883426498,0.25,66979.0,66978.0,0.149302]
[1729883426738,0.37483139,66985.0,66984.0,0.149289]
[1729883426937,0.77483139,66985.0,66984.0,0.149289]
[1729883427618,0.55050381,66985.0,66984.0,0.149289]
[1729883427842,0.55214781,66985.0,66984.0,0.149289]
[1729883428064,0.401644,66985.0,66984.0,0.149289]
[1729883428732,0.001644,66985.0,66984.0,0.149289]
[1729883429211,0.001644,66985.0,66984.0,0.164289]
[1729883429650,0.001644,66985.0,66984.0,0.149289]
[1729883430403,0.001644,66985.0,66984.0,0.154289]
[1729883431286,0.001644,66985.0,66984.0,0.149289]
[1729883432622,0.001644,66985.0,66984.0,0.154289]
[1729883433773,0.001644,66985.0,66984.0,0.164289]
[1729883434033,0.001644,66985.0,66984.0,0.31777845]
[1729883434247,0.001644,66985.0,66984.0,0.31479281]
[1729883436730,0.001644,66985.0,66984.0,0.159289]
[1729883436968,0.001644,66985.0,66984.0,0.164289]
[1729883437192,0.001644,66985.0,66984.0,0.149289]
[1729883437414,0.001644,66985.0,66984.0,0.159289]
[1729883437907,0.001644,66985.0,66984.0,0.154289]
[1729883439692,0.001644,66985.0,66984.0,0.159289]
[1729883439917,0.001644,66985.0,66984.0,0.164289]
[1729883441836,0.001644,66985.0,66984.0,0.149289]
[1729883442092,0.25813931,66985.0,66984.0,0.149289]
[1729883442311,0.23519782,66985.0,66984.0,0.149289]
[1729883442773,0.23519782,66985.0,66979.0,0.299421]
[1729883442774,0.25,66981.0,66980.0,0.447894]
[1729883443000,0.40050381,66981.0,66980.0,0.447894]
[1729883444808,0.44651604,66981.0,66980.0,0.447894]
[1729883445042,0.44651604,66981.0,66980.0,0.149298]
[1729883446418,0.44651604,66981.0,66979.0,0.000822]
[1729883446419,0.149298,66980.0,66979.0,0.000822]
[1729883446647,0.57954759,66980.0,66979.0,0.000822]
[1729883447091,0.58154759,66980.0,66979.0,0.000822]
[1729883447738,0.98154759,66980.0,66979.0,0.000822]
[1729883447960,0.83024959,66980.0,66979.0,0.000822]
[1729883448179,0.83224959,66980.0,66979.0,0.000822]
[1729883448404,1.1320514,66980.0,66979.0,0.000822]
[1729883448619,0.25,66968.0,66955.0,0.005]
[1729883448854,0.59584104,66968.0,66955.0,0.298707]
[1729883449081,0.48373355,66958.0,66939.0,0.01]
[1729883449325,0.25,66944.0,66943.0,0.14938]
[1729883449566,0.40050381,66944.0,66943.0,0.14938]
[1729883450282,0.63423736,66944.0,66943.0,0.14938]
[1729883450502,0.7125981,66944.0,66943.0,0.14938]
[1729883450969,1.02326165,66944.0,66925.0,0.000845]
[1729883451197,0.53255755,66929.0,66925.0,0.000845]
[1729883451426,0.399427,66922.0,66921.0,0.000845]
[1729883451662,0.63423736,66922.0,66921.0,0.000845]
[1729883453295,0.63423736,66922.0,66921.0,0.150274]
[1729883453556,0.63423736,66922.0,66921.0,0.000845]
[1729883454495,0.7376611,66922.0,66921.0,0.000845]
[1729883456402,0.63423736,66922.0,66921.0,0.000845]
[1729883458284,0.63423736,66922.0,66921.0,0.150274]
[1729883458508,0.63423736,66922.0,66921.0,0.000845]
[1729883459191,0.63423736,66922.0,66921.0,0.150274]
[1729883460135,0.40050381,66922.0,66921.0,0.150274]
[1729883460365,0.4,66925.0,66924.0,0.154423]
[1729883460618,0.4,66925.0,66924.0,0.159423]
[1729883460839,0.22432758,66934.0,66933.0,0.149403]
[1729883461591,0.23373355,66935.0,66934.0,0.1494]
[1729883463020,0.25,66938.0,66937.0,0.149394]
[1729883464412,0.23373355,66941.0,66940.0,0.149387]
[1729883464655,0.23373355,66941.0,66940.0,0.154387]
[1729883465648,0.23373355,66941.0,66936.0,0.298792]
[1729883465649,0.25,66936.0,66935.0,0.298796]
[1729883465866,0.48373355,66936.0,66935.0,0.149398]
[1729883467564,0.25,66936.0,66935.0,0.149398]
[1729883468249,0.15050381,66940.0,66939.0,0.149389]
[1729883468701,0.25,66943.0,66942.0,0.149383]
[1729883468939,0.40050381,66943.0,66942.0,0.149383]
[1729883469170,0.4863603,66943.0,66936.0,0.29879]
[1729883469403,0.23373355,66937.0,66936.0,0.29879]
[1729883469625,0.25,66936.0,66933.0,0.000822]
[1729883469842,0.15050381,66935.0,66933.0,0.000822]
[1729883471048,0.10824144,66934.0,66933.0,0.150224]
[1729883471283,0.25874525,66934.0,66933.0,0.150224]
[1729883471771,0.15050381,66934.0,66933.0,0.150224]
[1729883474944,0.15050381,66934.0,66933.0,0.000822]
[1729883475175,0.15050381,66934.0,66933.0,0.150225]
[1729883476313,0.15050381,66934.0,66933.0,0.000822]
[1729883476597,0.25,66926.0,66925.0,0.000822]
[1729883476849,0.23373355,66925.0,66923.0,0.149425]
[1729883477069,0.15050381,66924.0,66923.0,0.149425]
[1729883478029,0.37483139,66924.0,66921.0,0.299704]
[1729883478255,0.15050381,66924.0,66923.0,0.149425]
[1729883478971,0.70223763,66924.0,66908.0,0.005]
[1729883479203,0.005,66853.0,66852.0,9e-05]
[1729883479433,0.005,66857.0,66852.0,9e-05]
[1729883479664,0.01559444,66862.0,66852.0,0.1759481]
[1729883479905,0.01559444,66862.0,66861.0,0.149564]
[1729883480174,0.01559444,66862.0,66852.0,9e-05]
[1729883480695,0.23373355,66860.0,66852.0,9e-05]
[1729883480909,0.655,66853.0,66852.0,9e-05]
[1729883481363,0.89373355,66853.0,66852.0,9e-05]
[1729883481597,1.31756507,66853.0,66852.0,9e-05]
[1729883481850,0.93425052,66853.0,66852.0,9e-05]
[1729883482077,1.08583152,66853.0,66852.0,9e-05]
[1729883482294,0.93425052,66853.0,66852.0,9e-05]
[1729883482543,1.01838202,66853.0,66852.0,9e-05]
[1729883483241,1.16796302,66853.0,66852.0,9e-05]
[1729883483472,0.005,66828.0,66816.0,0.0177393]
[1729883483699,0.005,66828.0,66816.0,0.02573227]
[1729883483938,0.005,66844.0,66817.0,0.15050381]
[1729883484221,0.2244501,66832.0,66831.0,0.149631]
[1729883484473,0.2244501,66839.0,66838.0,0.149615]
[1729883484934,0.2244501,66839.0,66835.0,0.299241]
[1729883484935,0.005,66844.0,66843.0,0.149604]
[1729883485175,0.005,66851.0,66826.0,0.01]
[1729883485411,0.07936929,66852.0,66851.0,0.149586]
[1729883486094,0.07936929,66852.0,66851.0,0.30008981]
[1729883486320,0.2244501,66863.0,66862.0,0.149561]
[1729883486538,0.2244501,66863.0,66862.0,0.143621]
[1729883486760,0.005,66869.0,66866.0,0.149551]
[1729883487031,0.005,66869.0,66857.0,0.299145]
[1729883487253,0.005,66869.0,66851.0,0.15050381]
[1729883487722,0.005,66869.0,66865.0,0.149552]
[1729883487925,0.005,66869.0,66866.0,0.149552]
[1729883488146,0.005,66869.0,66851.0,0.15050381]
[1729883488384,0.005,66869.0,66866.0,0.149552]
[1729883488846,0.2244501,66871.0,66851.0,0.15050381]
[1729883488847,0.005,66863.0,66858.0,0.14957]
[1729883489317,0.005,66863.0,66860.0,0.149565]
[1729883489572,0.005,66863.0,66851.0,0.305171]
[1729883489573,0.005,66863.0,66859.0,0.149567]
[1729883489805,0.005,66852.0,66851.0,0.006]
[1729883490722,0.005,66852.0,66851.0,0.155586]
[1729883491176,0.15550381,66852.0,66851.0,0.006]
[1729883491631,0.20206748,66852.0,66851.0,0.006]
[1729883491875,0.75165148,66852.0,66851.0,0.006]
[1729883492164,0.75665148,66852.0,66851.0,0.006]
[1729883492901,0.255,66839.0,66826.0,0.299281]
[1729883493121,0.40550381,66839.0,66837.0,0.149615]
[1729883493336,0.40550381,66839.0,66835.0,0.14962]
[1729883493568,0.44605419,66839.0,66829.0,0.299267]
[1729883493798,0.44605419,66839.0,66834.0,0.149623]
[1729883494024,0.63373355,66840.0,66839.0,0.149613]
[1729883494025,0.4,66840.0,66839.0,0.149613]
[1729883494915,0.005,66849.0,66838.0,0.000822]
[1729883495162,0.2294501,66850.0,66849.0,0.14959]
[1729883495386,0.4,66853.0,66849.0,0.299181]
[1729883495614,0.4,66853.0,66852.0,0.149584]
[1729883495869,0.08139936,66857.0,66856.0,0.149575]
[1729883496093,0.005,66855.0,66839.0,0.299226]
[1729883496317,0.005,66855.0,66854.0,0.149579]
[1729883497255,0.005,66851.0,66849.0,0.149589]
[1729883497466,0.005,66851.0,66850.0,0.149588]
[1729883497919,0.15050381,66854.0,66853.0,0.149581]
[1729883498159,0.08139936,66857.0,66842.0,0.299211]
[1729883498160,0.07639936,66857.0,66856.0,0.149575]
[1729883502533,0.07639936,66857.0,66856.0,0.15256628]
[1729883502744,0.2244501,66866.0,66865.0,0.149555]
[1729883502973,0.2244501,66866.0,66865.0,0.14899707]
[1729883503191,0.07666083,66877.0,66876.0,0.14953]
[1729883504817,0.2314501,66892.0,66876.0,0.14953]
[1729883504818,0.005,66890.0,66889.0,0.149501]
[1729883505066,0.2244501,66887.0,66886.0,0.149508]
[1729883505287,0.07754844,66891.0,66884.0,0.299023]
[1729883505506,0.07661757,66889.0,66888.0,0.149503]
[1729883508686,0.08427933,66889.0,66866.0,0.01]
[1729883508932,0.005,66887.0,66885.0,0.149509]
[1729883509157,0.005,66887.0,66870.0,0.005]
[1729883509158,0.07661757,66889.0,66875.0,0.005]
[1729883509380,0.07661757,66889.0,66888.0,0.149503]
[1729883512098,0.07826357,66889.0,66888.0,0.149503]
[1729883513493,0.001646,66889.0,66888.0,0.57209609]
[1729883513721,0.001646,66889.0,66888.0,0.5737846]
[1729883513941,0.001646,66889.0,66888.0,0.57917193]
[1729883514183,0.001646,66889.0,66888.0,0.57449444]
[1729883514406,0.001646,66889.0,66888.0,0.57917184]
[1729883515368,0.001646,66889.0,66888.0,0.58117184]
[1729883516472,0.001646,66889.0,66888.0,0.57917184]
[1729883516688,0.001646,66889.0,66888.0,0.57449444]
[1729883516929,0.001646,66889.0,66888.0,0.57649444]
[1729883517405,0.001646,66889.0,66888.0,0.57449444]
[1729883519773,0.001646,66889.0,66888.0,0.56910681]
[1729883520016,0.001646,66889.0,66888.0,0.149503]
[1729883521382,0.001646,66889.0,66886.0,0.149506]
[1729883521628,0.001646,66889.0,66887.0,0.299011]
[1729883521845,0.001646,66889.0,66888.0,0.149503]
[1729883523845,0.001646,66889.0,66888.0,0.1524927]
[1729883525203,0.001646,66889.0,66888.0,0.149503]
[1729883527280,0.001646,66889.0,66888.0,0.139503]
[1729883527511,0.001646,66889.0,66884.0,0.149512]
[1729883527738,0.005,66881.0,66871.0,0.005]
[1729883527962,0.005,66881.0,66865.0,0.005823]
[1729883527963,0.401646,66889.0,66888.0,0.149503]
[1729883528857,0.001646,66889.0,66888.0,0.149503]
[1729883529572,0.001646,66889.0,66888.0,0.15249252]
[1729883529800,0.001646,66889.0,66888.0,0.31299633]
[1729883530015,0.001646,66889.0,66888.0,0.31000681]
[1729883530721,0.001646,66889.0,66888.0,0.31468495]
[1729883531642,0.001646,66889.0,66888.0,0.15418114]
[1729883531870,0.001646,66889.0,66888.0,0.15918114]
[1729883532979,0.001646,66889.0,66888.0,0.16217081]
[1729883533467,0.001646,66889.0,66888.0,0.149503]
[1729883533701,0.001646,66889.0,66888.0,0.15418137]
[1729883533925,0.001646,66889.0,66888.0,0.149503]
[1729883536749,0.02518396,66889.0,66888.0,0.149503]
[1729883536971,0.005,66886.0,66885.0,0.14951]
[1729883538358,0.001646,66889.0,66888.0,0.149503]
[1729883540673,0.15214981,66889.0,66865.0,0.010823]
[1729883540921,0.15214981,66889.0,66877.0,0.149528]
[1729883540922,0.23873355,66878.0,66877.0,0.149528]
[1729883541148,0.23873355,66878.0,66865.0,0.000823]
[1729883541373,0.23873355,66878.0,66866.0,0.299105]
[1729883541374,0.23373355,66871.0,66866.0,0.299105]
[1729883541593,0.005,66874.0,66865.0,0.000823]
[1729883541594,0.23873355,66866.0,66865.0,0.000823]
[1729883541826,0.38923736,66866.0,66865.0,0.000823]
[1729883542301,0.43324852,66866.0,66865.0,0.000823]
[1729883542546,0.38923736,66866.0,66865.0,0.000823]
[1729883543248,0.43327079,66866.0,66865.0,0.000823]
[1729883543472,0.6399309,66866.0,66865.0,0.000823]
[1729883543733,0.25069354,66866.0,66865.0,0.150378]
[1729883543954,0.04409646,66869.0,66865.0,0.000823]
[1729883544185,0.005,66869.0,66868.0,0.149548]
[1729883544638,0.04408105,66870.0,66869.0,0.149546]
[1729883544867,0.04408105,66871.0,66870.0,0.149543]
[1729883545145,0.07113769,66873.0,66872.0,0.149539]
[1729883545574,0.005,66873.0,66872.0,0.149539]
[1729883545795,0.04907426,66873.0,66872.0,0.149539]
[1729883546016,0.04407426,66873.0,66872.0,0.149539]
[1729883546282,0.27780781,66873.0,66872.0,0.149539]
[1729883546505,0.29983302,66873.0,66872.0,0.149539]
[1729883546724,0.48454098,66873.0,66869.0,0.299091]
[1729883546951,0.005,66866.0,66865.0,0.000823]
[1729883547176,0.30481102,66866.0,66865.0,0.000823]
[1729883547422,0.66202061,66866.0,66865.0,0.000823]
[1729883547660,0.55185162,66866.0,66865.0,0.000823]
[1729883547871,0.76760568,66866.0,66865.0,0.000823]
[1729883548106,0.84830568,66866.0,66865.0,0.000823]
[1729883548772,1.24830568,66866.0,66865.0,0.000823]
[1729883549856,1.24805034,66866.0,66865.0,0.000823]
[1729883550568,1.14221507,66866.0,66865.0,0.000823]
[1729883550793,0.88403787,66866.0,66865.0,0.000823]
[1729883551006,0.88403787,66866.0,66850.0,0.598354]
[1729883551007,0.44896219,66866.0,66850.0,0.598354]
[1729883551233,0.44896219,66866.0,66865.0,0.139555]
[1729883551234,0.4,66866.0,66865.0,0.139555]
[1729883551523,0.4,66866.0,66865.0,0.29304976]
[1729883551725,0.4,66866.0,66865.0,0.30005881]
[1729883551972,0.2244501,66876.0,66875.0,0.159532]
[1729883552675,0.2244501,66883.0,66882.0,0.149517]
[1729883553152,0.001646,66889.0,66878.0,0.299052]
[1729883553153,0.001646,66889.0,66885.0,0.149508]
[1729883553584,0.001646,66889.0,66884.0,0.299024]
[1729883553799,0.001646,66889.0,66877.0,0.005]
[1729883553800,0.001646,66889.0,66888.0,0.149503]
[1729883554073,0.001646,66889.0,66877.0,0.01]
[1729883554297,0.23373355,66888.0,66883.0,0.149513]
[1729883554507,0.23373355,66888.0,66886.0,0.149506]
[1729883555199,0.001646,66889.0,66883.0,0.299029]
[1729883555419,0.001646,66889.0,66888.0,0.149503]
[1729883559562,0.001646,66889.0,66881.0,0.299035]
[1729883559780,0.001646,66889.0,66882.0,0.299034]
[1729883560011,0.001646,66889.0,66884.0,0.299023]
[1729883560240,0.001646,66889.0,66886.0,0.149507]
[1729883560904,0.001646,66889.0,66887.0,0.149504]
[1729883561352,0.001646,66889.0,66888.0,0.149503]
[1729883562077,0.001646,66889.0,66888.0,0.15249288]
[1729883562308,0.001646,66889.0,66888.0,0.31499669]
[1729883562583,0.001646,66889.0,66888.0,0.31000681]
[1729883562795,0.2244501,66902.0,66897.0,0.01]
[1729883563012,0.2244501,66902.0,66901.0,0.149474]
[1729883563464,0.2244501,66913.0,66912.0,0.14945]
[1729883563916,0.001694,66922.0,66921.0,0.149429]
[1729883565805,0.001694,66922.0,66916.0,0.59776]
[1729883565806,0.001694,66922.0,66916.0,0.298878]
[1729883566035,0.001694,66922.0,66913.0,0.298892]
[1729883566036,0.006694,66922.0,66913.0,0.298892]
[1729883566254,0.007694,66922.0,66909.0,0.29891]
[1729883566477,0.006694,66922.0,66915.0,0.149441]
[1729883566720,0.001694,66922.0,66916.0,0.15050381]
[1729883567011,0.002694,66922.0,66921.0,0.149429]
[1729883567253,0.001694,66922.0,66921.0,0.149429]
[1729883567782,0.001694,66922.0,66921.0,0.39223281]
[1729883568022,0.001694,66924.0,66923.0,0.159425]
[1729883568271,0.001694,66924.0,66923.0,0.30992881]
[1729883568734,0.001694,66924.0,66923.0,0.31192881]
[1729883569175,0.002694,66924.0,66923.0,0.30992881]
[1729883569393,0.001694,66924.0,66923.0,0.30992881]
[1729883569871,0.002694,66924.0,66923.0,0.30992881]
[1729883570558,0.002694,66924.0,66923.0,0.29992881]
[1729883571089,0.002694,66924.0,66923.0,0.149425]
[1729883571326,0.0008284,66924.0,66923.0,0.149425]
[1729883571550,0.001644,66926.0,66925.0,0.14942]
[1729883572218,0.001644,66926.0,66925.0,0.15240808]
[1729883573134,0.002644,66926.0,66925.0,0.15240808]
[1729883573425,0.001644,66926.0,66925.0,0.15240808]
[1729883575544,0.001644,66926.0,66925.0,0.30291189]
[1729883576004,0.001644,66926.0,66925.0,0.29992381]
[1729883577958,0.001644,66926.0,66925.0,0.14942]
[1729883581529,0.23537755,66926.0,66921.0,0.000821]
[1729883581767,0.005,66922.0,66921.0,0.000821]
[1729883582020,0.006644,66926.0,66921.0,0.000821]
[1729883582272,0.006644,66926.0,66923.0,0.149424]
[1729883582476,0.006644,66926.0,66922.0,0.149426]
[1729883582711,0.006644,66926.0,66921.0,0.000821]
[1729883582949,0.006644,66926.0,66921.0,0.150249]
[1729883583196,0.006644,66926.0,66921.0,0.000821]
[1729883583434,0.38979655,66926.0,66921.0,0.000821]
[1729883583687,0.154427,66922.0,66921.0,0.000821]
[1729883584185,0.4581771,66922.0,66921.0,0.000821]
[1729883584431,0.38318755,66911.0,66897.0,0.149483]
[1729883584656,0.38318755,66911.0,66898.0,0.005]
[1729883584657,0.23373355,66911.0,66898.0,0.005]
[1729883584930,0.38318655,66911.0,66897.0,0.298967]
[1729883594581,0.2244501,66914.0,66913.0,0.149447]
[1729883595064,0.45818365,66921.0,66920.0,0.149432]
[1729883595283,0.45818365,66921.0,66919.0,0.149433]
[1729883595510,0.45818365,66921.0,66917.0,0.298874]
[1729883595511,0.45818365,66921.0,66918.0,0.298873]
[1729883595734,0.005,66925.0,66909.0,0.005]
[1729883595965,0.005,66925.0,66921.0,0.149429]
[1729883596188,0.005,66925.0,66910.0,0.15050381]
[1729883596481,0.005,66925.0,66920.0,0.14943]
[1729883597140,0.23873355,66921.0,66908.0,0.005]
[1729883597391,0.23373355,66919.0,66909.0,0.005]
[1729883597634,0.23373355,66919.0,66914.0,0.29889]
[1729883597833,0.23373355,66919.0,66915.0,0.149441]
[1729883598961,0.23373355,66919.0,66909.0,0.005]
[1729883599183,0.23373355,66919.0,66916.0,0.14944]
[1729883600120,0.23373355,66919.0,66904.0,0.298933]
[1729883600121,0.005,66915.0,66904.0,0.298933]
[1729883600389,0.005,66915.0,66885.0,0.002]
[1729883600390,0.23373355,66906.0,66900.0,0.298953]
[1729883600596,0.23373355,66906.0,66897.0,0.01036413]
[1729883600807,0.23373355,66906.0,66905.0,0.149465]
[1729883601530,0.45818365,66916.0,66906.0,0.298926]
[1729883601749,0.45818365,66916.0,66915.0,0.149443]
[1729883601929,0.45818365,66916.0,66911.0,0.2989]
[1729883602172,0.23373355,66916.0,66914.0,0.149445]
[1729883602394,0.23373355,66916.0,66899.0,0.01]
[1729883602395,0.23373355,66916.0,66911.0,0.298904]
[1729883602613,0.23373355,66916.0,66899.0,0.01]
[1729883602614,0.23373355,66916.0,66912.0,0.149449]
[1729883602849,0.23373355,66916.0,66911.0,0.149451]
[1729883603060,0.23373355,66916.0,66911.0,0.14945]
[1729883603287,0.23373355,66916.0,66911.0,0.149451]
[1729883603503,0.23373355,66916.0,66910.0,0.149454]
[1729883603714,0.23373355,66916.0,66909.0,0.149455]
[1729883603949,0.23373355,66916.0,66899.0,0.01]
[1729883604196,0.23373355,66911.0,66909.0,0.149456]
[1729883604415,0.23373355,66911.0,66907.0,0.44838]
[1729883604649,0.23373355,66911.0,66908.0,0.149458]
[1729883605319,0.23373355,66911.0,66909.0,0.149454]
[1729883605551,0.23373355,66911.0,66910.0,0.149454]
[1729883606027,0.23373355,66911.0,66908.0,0.149456]
[1729883606270,0.298913,66909.0,66890.0,0.01]
[1729883606511,0.298913,66909.0,66885.0,0.0772]
[1729883606512,0.04403532,66906.0,66885.0,0.0772]
[1729883606728,0.04403538,66909.0,66907.0,0.149461]
[1729883606954,0.23373355,66911.0,66907.0,0.149461]